bitfinex-derivatives/quotes_BTCF0:USTF0_20260119
["timestamp","ask_amount","ask_price","bid_price","bid_amount"]
[1768866562489,0.08647846,92707.0,92688.0,0.01527924]
[1768866562689,0.08647846,92707.0,92688.0,0.09712]
[1768866563289,0.08647846,92707.0,92691.0,0.010795]
[1768866564186,0.07690877,92707.0,92689.0,0.0099323]
[1768866565089,0.07690877,92707.0,92692.0,0.010795]
[1768866565991,0.08684983,92707.0,92696.0,0.010794]
[1768866566487,0.08684983,92707.0,92689.0,0.0099323]
[1768866566488,0.08684983,92707.0,92693.0,0.010795]
[1768866567391,0.010793,92711.0,92688.0,0.11273271]
[1768866567392,0.0941093,92704.0,92690.0,0.010795]
[1768866569692,0.0941093,92704.0,92692.0,0.010795]
[1768866570389,0.08416824,92704.0,92689.0,0.010795]
[1768866570592,0.0941093,92702.0,92689.0,0.010795]
[1768866570990,0.0941093,92702.0,92691.0,0.010795]
[1768866571184,0.08416824,92702.0,92691.0,0.010795]
[1768866571385,0.08416824,92702.0,92693.0,0.010795]
[1768866576386,0.00994106,92706.0,92693.0,0.010795]
[1768866576696,0.0941093,92705.0,92693.0,0.010795]
[1768866576898,0.0941093,92703.0,92688.0,0.11273271]
[1768866579202,0.0941093,92703.0,92690.0,0.010795]
[1768866579500,0.0941093,92703.0,92692.0,0.010795]
[1768866580701,0.08416824,92703.0,92692.0,0.010795]
[1768866582000,0.08416824,92703.0,92693.0,0.010795]
[1768866583092,0.08416824,92703.0,92688.0,0.11273271]
[1768866583292,0.08416824,92703.0,92695.0,0.010795]
[1768866585389,0.08416824,92703.0,92688.0,0.19001334]
[1768866585390,0.08416824,92703.0,92691.0,0.010795]
[1768866585595,0.08693739,92701.0,92691.0,0.010795]
[1768866585796,0.07704704,92701.0,92691.0,0.010795]
[1768866585995,0.07704704,92701.0,92692.0,0.010795]
[1768866586205,0.07704704,92701.0,92688.0,0.19001334]
[1768866588390,0.07704704,92707.0,92696.0,0.010794]
[1768866588905,0.08693739,92707.0,92696.0,0.010794]
[1768866590310,0.00989035,92706.0,92696.0,0.010794]
[1768866590513,0.08693739,92706.0,92696.0,0.010794]
[1768866590808,0.08693739,92706.0,92694.0,0.010795]
[1768866591001,0.07704704,92706.0,92694.0,0.010795]
[1768866591201,0.07704704,92706.0,92689.0,0.00972006]
[1768866591409,0.00989035,92716.0,92700.0,0.010794]
[1768866591716,0.010792,92714.0,92697.0,0.00972006]
[1768866592709,0.08783904,92714.0,92696.0,0.010794]
[1768866593506,0.07704704,92714.0,92697.0,0.010794]
[1768866593815,0.07704704,92714.0,92699.0,0.010794]
[1768866595810,0.07704704,92714.0,92700.0,0.010794]
[1768866597323,0.08669501,92714.0,92700.0,0.010794]
[1768866597922,0.08669501,92714.0,92695.0,0.00990251]
[1768866598124,0.07809943,92719.0,92705.0,0.010793]
[1768866598319,0.07809943,92719.0,92702.0,0.0580882]
[1768866598626,0.0877474,92719.0,92705.0,0.010793]
[1768866599228,0.0877474,92718.0,92705.0,0.010793]
[1768866601320,0.0877474,92718.0,92706.0,0.010793]
[1768866601629,0.0877474,92718.0,92709.0,0.010793]
[1768866602526,0.07809943,92725.0,92713.0,0.010792]
[1768866602717,0.07809943,92730.0,92713.0,0.010792]
[1768866602913,0.07809943,92723.0,92708.0,0.0580882]
[1768866603131,0.00964797,92710.0,92698.0,0.17440063]
[1768866603323,0.00964797,92707.0,92695.0,0.07728063]
[1768866603519,0.05219942,92746.0,92697.0,0.18165411]
[1768866603520,0.07809943,92714.0,92697.0,0.18165411]
[1768866603824,0.00964797,92716.0,92704.0,0.010793]
[1768866604626,0.00964797,92716.0,92701.0,0.010794]
[1768866606726,0.00964797,92716.0,92703.0,0.010794]
[1768866606929,0.00964797,92719.0,92701.0,0.00990251]
[1768866607116,0.01079,92732.0,92713.0,0.010792]
[1768866607117,0.00964797,92723.0,92713.0,0.010792]
[1768866607321,0.07809943,92726.0,92713.0,0.010792]
[1768866607523,0.00964797,92729.0,92713.0,0.010792]
[1768866607725,0.0877474,92729.0,92713.0,0.010792]
[1768866607931,0.00964797,92727.0,92715.0,0.010792]
[1768866608117,0.00964797,92726.0,92715.0,0.010792]
[1768866608936,0.07809943,92727.0,92709.0,0.00990251]
[1768866609122,0.07809943,92727.0,92716.0,0.010792]
[1768866609430,0.0877474,92727.0,92718.0,0.010792]
[1768866613133,0.0877474,92727.0,92717.0,0.010792]
[1768866615332,0.0877474,92727.0,92707.0,0.09907181]
[1768866615534,0.0877474,92727.0,92710.0,0.18165411]
[1768866616125,0.0877474,92727.0,92719.0,0.010792]
[1768866616927,0.0877474,92727.0,92721.0,0.010792]
[1768866617933,0.00964797,92737.0,92721.0,0.010792]
[1768866618438,0.00964797,92734.0,92721.0,0.010792]
[1768866618628,0.00964797,92731.0,92712.0,0.0783763]
[1768866618829,0.00964797,92726.0,92710.0,0.18165411]
[1768866619638,0.00964797,92726.0,92718.0,0.010792]
[1768866620141,0.00964797,92722.0,92713.0,0.010792]
[1768866620347,0.00237212,92744.0,92699.0,0.07728063]
[1768866620348,0.07809943,92716.0,92699.0,0.07728063]
[1768866620642,0.00964797,92716.0,92703.0,0.010794]
[1768866620939,0.07809943,92717.0,92705.0,0.010793]
[1768866621138,0.00964797,92714.0,92705.0,0.010793]
[1768866621337,0.00237201,92749.0,92731.0,0.08827881]
[1768866621536,0.09669927,92767.0,92730.0,0.00990251]
[1768866621537,0.09712,92745.0,92735.0,0.0783763]
[1768866621741,0.09712,92744.0,92735.0,0.18165411]
[1768866621937,0.09712,92743.0,92740.0,0.010789]
[1768866622130,0.31584,92763.0,92743.0,0.010789]
[1768866622335,0.09712,92762.0,92743.0,0.010789]
[1768866622539,0.11712,92762.0,92743.0,0.010789]
[1768866622737,0.11712,92762.0,92740.0,0.18165411]
[1768866622738,0.127907,92762.0,92740.0,0.010789]
[1768866622932,0.18165411,92760.0,92740.0,0.010789]
[1768866623335,0.00929007,92753.0,92740.0,0.010789]
[1768866623530,0.00929007,92751.0,92740.0,0.010789]
[1768866623939,0.00929007,92751.0,92742.0,0.010789]
[1768866625939,0.09712,92750.0,92744.0,0.010789]
[1768866627043,0.09712,92750.0,92732.0,0.01079]
[1768866627044,0.09712,92749.0,92746.0,0.010789]
[1768866627449,0.09712,92749.0,92743.0,0.010789]
[1768866628047,0.09712,92750.0,92743.0,0.010789]
[1768866628341,0.09712,92750.0,92742.0,0.010789]
[1768866629251,0.00929007,92756.0,92742.0,0.010789]
[1768866629948,0.09712,92755.0,92744.0,0.010789]
[1768866630452,0.00929007,92748.0,92730.0,0.18165411]
[1768866630637,0.00929007,92748.0,92736.0,0.01079]
[1768866630837,0.00242935,92746.0,92725.0,0.09202398]
[1768866631043,0.00242935,92741.0,92724.0,0.09949263]
[1768866631745,0.09712,92743.0,92738.0,0.01079]
[1768866632142,0.0797921,92753.0,92738.0,0.01079]
[1768866632143,0.09146413,92745.0,92738.0,0.01079]
[1768866632452,0.09712,92745.0,92735.0,0.01079]
[1768866632749,0.00251116,92750.0,92735.0,0.01079]
[1768866633044,0.00251116,92748.0,92732.0,0.01079]
[1768866633640,0.00251116,92737.0,92727.0,0.010791]
[1768866633840,0.00251116,92737.0,92724.0,0.00237263]
[1768866634550,0.1769121,92738.0,92724.0,0.00237263]
[1768866634551,0.0797921,92736.0,92724.0,0.00237263]
[1768866634746,0.09712,92738.0,92716.0,0.010792]
[1768866634747,0.0797921,92733.0,92716.0,0.010792]
[1768866634941,0.0797921,92729.0,92716.0,0.010792]
[1768866635151,0.0797921,92729.0,92703.0,0.08230739]
[1768866635344,0.0797921,92727.0,92707.0,0.010793]
[1768866635551,0.0797921,92725.0,92707.0,0.010793]
[1768866638154,0.0797921,92725.0,92703.0,0.08230739]
[1768866638353,0.0797921,92725.0,92710.0,0.010793]
[1768866638548,0.0797921,92725.0,92703.0,0.08230739]
[1768866638755,0.0905831,92725.0,92708.0,0.010793]
[1768866638954,0.0797921,92725.0,92710.0,0.010793]
[1768866639545,0.0797921,92725.0,92712.0,0.010793]
[1768866639746,0.0797921,92725.0,92714.0,0.010792]
[1768866641054,0.0797921,92725.0,92710.0,0.18165411]
[1768866641646,0.0797921,92725.0,92713.0,0.010792]
[1768866641846,0.0797921,92725.0,92710.0,0.19244711]
[1768866642051,0.0797921,92725.0,92712.0,0.010793]
[1768866642255,0.09712,92726.0,92712.0,0.010793]
[1768866644957,0.09712,92726.0,92710.0,0.18165411]
[1768866645160,0.09712,92726.0,92711.0,0.010793]
[1768866645954,0.09712,92726.0,92710.0,0.010793]
[1768866646160,0.17878051,92726.0,92710.0,0.19244711]
[1768866646861,0.18957151,92726.0,92710.0,0.010793]
[1768866647159,0.08166051,92725.0,92710.0,0.010793]
[1768866647860,0.09712,92724.0,92712.0,0.010793]
[1768866649063,0.09712,92724.0,92710.0,0.18165411]
[1768866649266,0.09712,92724.0,92709.0,0.010793]
[1768866649765,0.09712,92724.0,92706.0,0.05779757]
[1768866650663,0.09712,92724.0,92709.0,0.010793]
[1768866652858,0.09712,92724.0,92707.0,0.010793]
[1768866653069,0.107911,92724.0,92707.0,0.010793]
[1768866653254,0.107911,92724.0,92707.0,0.06859057]
[1768866653671,0.107911,92724.0,92709.0,0.010793]
[1768866653856,0.107911,92724.0,92707.0,0.06859057]
[1768866654160,0.18165411,92720.0,92705.0,0.06859057]
[1768866654356,0.010792,92722.0,92705.0,0.06859057]
[1768866654965,0.010792,92722.0,92706.0,0.010793]
[1768866655160,0.18080819,92724.0,92706.0,0.06859057]
[1768866655362,0.18080819,92724.0,92706.0,0.010793]
[1768866655967,0.010793,92712.0,92688.0,0.02640771]
[1768866656263,0.18165411,92700.0,92688.0,0.01561271]
[1768866656567,0.09712,92705.0,92693.0,0.010795]
[1768866656862,0.09712,92704.0,92689.0,0.010795]
[1768866657064,0.09712,92704.0,92689.0,0.08649314]
[1768866659265,0.09712,92704.0,92689.0,0.07569814]
[1768866660057,0.09712,92704.0,92689.0,0.08649314]
[1768866660665,0.09712,92704.0,92689.0,0.07569814]
[1768866661267,0.09712,92704.0,92690.0,0.010795]
[1768866661466,0.09712,92704.0,92689.0,0.07569814]
[1768866661769,0.09712,92704.0,92689.0,0.08649314]
[1768866664566,0.010794,92703.0,92689.0,0.07569814]
[1768866665355,0.09712,92704.0,92689.0,0.07569814]
[1768866666073,0.09712,92704.0,92689.0,0.08649314]
[1768866666265,0.09712,92704.0,92695.0,0.08649314]
[1768866666473,0.08884016,92704.0,92695.0,0.07569814]
[1768866667370,0.08884016,92704.0,92689.0,0.07569814]
[1768866667582,0.08884016,92704.0,92689.0,0.08649314]
[1768866668670,0.010794,92699.0,92683.0,0.07569814]
[1768866668863,0.010794,92702.0,92683.0,0.07569814]
[1768866669465,0.08884016,92704.0,92683.0,0.09247119]
[1768866670377,0.010794,92700.0,92683.0,0.10326719]
[1768866670766,0.08884016,92704.0,92683.0,0.01677305]
[1768866670961,0.010795,92694.0,92678.0,0.08649414]
[1768866671678,0.107915,92694.0,92678.0,0.08649414]
[1768866672672,0.107915,92694.0,92678.0,0.10337629]
[1768866672874,0.010795,92692.0,92679.0,0.07569814]
[1768866673070,0.09712,92694.0,92678.0,0.01688215]
[1768866673274,0.010796,92687.0,92670.0,0.07569814]
[1768866673571,0.09712,92694.0,92672.0,0.08649514]
[1768866674178,0.010796,92687.0,92672.0,0.08649514]
[1768866674571,0.09712,92694.0,92672.0,0.07569814]
[1768866675382,0.010796,92687.0,92672.0,0.07569814]
[1768866675568,0.010796,92684.0,92672.0,0.09248194]
[1768866675770,0.107915,92694.0,92672.0,0.09248194]
[1768866676982,0.010796,92686.0,92673.0,0.07569814]
[1768866677575,0.010795,92692.0,92673.0,0.07569814]
[1768866678881,0.010796,92681.0,92672.0,0.0167838]
[1768866679073,0.010796,92681.0,92669.0,0.01317205]
[1768866679275,0.010796,92681.0,92669.0,0.07807219]
[1768866679583,0.010796,92679.0,92669.0,0.07807219]
[1768866679783,0.010796,92682.0,92669.0,0.07807219]
[1768866680081,0.010797,92673.0,92669.0,5e-08]
[1768866680582,0.107957,92673.0,92669.0,5e-08]
[1768866681377,0.09716,92673.0,92669.0,5e-08]
[1768866681975,0.010797,92672.0,92663.0,0.01680067]
[1768866682174,0.010797,92672.0,92657.0,0.07569814]
[1768866683079,0.00012189,92671.0,92657.0,0.07569814]
[1768866683382,0.00012189,92671.0,92659.0,0.07068658]
[1768866683683,0.010799,92660.0,92649.0,0.07306115]
[1768866684073,0.010798,92663.0,92649.0,0.07306115]
[1768866684277,0.010799,92660.0,92649.0,0.08997395]
[1768866684488,0.010799,92660.0,92650.0,0.07068658]
[1768866685286,0.010798,92663.0,92650.0,0.08068261]
[1768866685892,0.010798,92663.0,92650.0,0.07068658]
[1768866686276,0.09716,92662.0,92649.0,0.00237457]
[1768866686488,0.09716,92661.0,92649.0,0.01901982]
[1768866686685,0.010799,92659.0,92649.0,0.00237457]
[1768866686987,0.09716,92658.0,92649.0,0.00237457]
[1768866687377,0.09716,92658.0,92644.0,0.07068658]
[1768866688286,0.09716,92658.0,92646.0,0.07068658]
[1768866688480,0.09716,92658.0,92648.0,0.07068658]
[1768866697783,0.09716,92658.0,92647.0,0.07068658]
[1768866698389,0.09716,92658.0,92638.0,0.07068658]
[1768866698690,0.09716,92658.0,92638.0,0.08668734]
[1768866698691,0.0108,92653.0,92638.0,0.08668734]
[1768866699089,0.010799,92656.0,92638.0,0.08668734]
[1768866699484,0.010799,92654.0,92638.0,0.08668734]
[1768866699896,0.09716,92658.0,92638.0,0.08668734]
[1768866700289,0.0108,92650.0,92638.0,0.08668734]
[1768866700590,0.010799,92656.0,92633.0,0.07068658]
[1768866701183,0.09716,92658.0,92633.0,0.07068658]
[1768866701388,0.0108,92653.0,92634.0,0.08148858]
[1768866702191,0.0108,92653.0,92636.0,0.08548807]
[1768866703792,0.010796,92684.0,92646.0,0.00920241]
[1768866703985,0.0972,92670.0,92658.0,0.00920241]
[1768866704189,0.0972,92670.0,92663.0,0.07468707]
[1768866704489,0.05192524,92703.0,92676.0,0.08548407]
[1768866704692,0.0972,92688.0,92676.0,0.08548407]
[1768866704891,0.0972,92687.0,92676.0,0.08548407]
[1768866705102,0.0972,92691.0,92678.0,0.08388948]
[1768866706193,0.010795,92688.0,92672.0,0.07468707]
[1768866706594,0.0972,92691.0,92674.0,0.07468707]
[1768866706788,0.010795,92690.0,92676.0,0.07468707]
[1768866707094,0.010795,92690.0,92670.0,0.010797]
[1768866707095,0.0972,92691.0,92671.0,0.07468707]
[1768866707801,0.010794,92699.0,92671.0,0.07468707]
[1768866708098,0.12092559,92698.0,92671.0,0.07468707]
[1768866708292,0.02372559,92697.0,92671.0,0.07468707]
[1768866708900,0.010795,92688.0,92671.0,0.07231302]
[1768866709091,0.0972,92687.0,92671.0,0.07231302]
[1768866710898,0.0972,92687.0,92673.0,0.07468707]
[1768866711207,0.0972,92687.0,92675.0,0.07468707]
[1768866712298,0.0972,92687.0,92675.0,0.08388948]
[1768866714101,0.0972,92687.0,92675.0,0.07468707]
[1768866715002,0.09716,92687.0,92675.0,0.07468707]
[1768866716495,0.107956,92687.0,92675.0,0.07468707]
[1768866716695,0.09716,92687.0,92675.0,0.08548407]
[1768866717594,0.09716,92687.0,92677.0,0.07179005]
[1768866718094,0.010795,92691.0,92677.0,0.07179005]
[1768866718296,0.09716,92690.0,92677.0,0.07179005]
[1768866719097,0.010795,92691.0,92677.0,0.07179005]
[1768866719298,0.09716,92690.0,92677.0,0.07179005]
[1768866719891,0.010795,92691.0,92677.0,0.08086305]
[1768866720107,0.010795,92691.0,92675.0,0.010797]
[1768866720108,0.09716,92690.0,92681.0,0.08086305]
[1768866720609,0.010795,92689.0,92681.0,0.07179005]
[1768866721698,0.010796,92686.0,92675.0,0.07179005]
[1768866721898,0.010795,92689.0,92670.0,0.07179005]
[1768866722703,0.010796,92684.0,92670.0,0.08258705]
[1768866723613,0.010796,92686.0,92672.0,0.08258705]
[1768866723909,0.010796,92684.0,92672.0,0.07179005]
[1768866724303,0.010796,92684.0,92671.0,0.010797]
[1768866724304,0.09716,92690.0,92673.0,0.08258705]
[1768866725004,0.27895909,92690.0,92673.0,0.07179005]
[1768866726316,0.18179909,92683.0,92659.0,0.07179005]
[1768866726515,0.010796,92685.0,92659.0,0.07179005]
[1768866726516,0.18179909,92670.0,92659.0,0.07179005]
[1768866726813,0.010797,92671.0,92659.0,0.07179005]
[1768866727207,0.09716,92673.0,92659.0,0.07179005]
[1768866727408,0.09716,92673.0,92661.0,0.010798]
[1768866727717,0.09716,92673.0,92661.0,0.08258805]
[1768866729020,0.01419075,92673.0,92670.0,0.07179005]
[1768866729216,0.09716,92675.0,92665.0,0.08086305]
[1768866729519,0.09716,92675.0,92665.0,0.07179005]
[1768866729910,0.107957,92675.0,92665.0,0.07179005]
[1768866731717,0.09716,92675.0,92665.0,0.07179005]
[1768866734722,0.107957,92676.0,92665.0,0.07179005]
[1768866735327,0.010797,92674.0,92665.0,0.07179005]
[1768866736521,0.09716,92676.0,92665.0,0.07179005]
[1768866736728,0.010797,92675.0,92665.0,0.07179005]
[1768866737027,0.107957,92675.0,92665.0,0.07179005]
[1768866737617,0.09716,92675.0,92665.0,0.07179005]
[1768866738818,0.107957,92675.0,92665.0,0.07179005]
[1768866739126,0.010797,92673.0,92665.0,0.07179005]
[1768866739622,0.10656572,92675.0,92658.0,0.07179005]
[1768866739826,0.010798,92668.0,92658.0,0.07179005]
[1768866740522,0.18179909,92670.0,92650.0,0.07179005]
[1768866740523,0.00940572,92669.0,92650.0,0.07179005]
[1768866740730,0.010798,92665.0,92650.0,0.07179005]
[1768866740924,0.010798,92663.0,92651.0,0.08259005]
[1768866741628,0.010798,92663.0,92651.0,0.07179005]
[1768866742027,0.010798,92666.0,92655.0,0.07179005]
[1768866743244,0.010798,92669.0,92655.0,0.07179005]
[1768866743940,0.00910798,92682.0,92662.0,0.00907171]
[1768866744135,0.00910798,92682.0,92650.0,0.19259909]
[1768866744136,0.18179909,92680.0,92665.0,0.07490242]
[1768866744344,0.02358474,92679.0,92665.0,0.07490242]
[1768866744638,0.02358474,92678.0,92665.0,0.06583071]
[1768866744832,0.010797,92675.0,92665.0,0.06583071]
[1768866745539,0.09716,92675.0,92667.0,0.06583071]
[1768866748650,0.107957,92676.0,92667.0,0.06583071]
[1768866748853,0.09716,92676.0,92661.0,0.00907171]
[1768866749039,0.010798,92670.0,92661.0,0.00907171]
[1768866749435,0.010797,92673.0,92661.0,0.00907171]
[1768866751148,0.010797,92673.0,92661.0,0.07490242]
[1768866752051,0.010797,92671.0,92661.0,0.07490242]
[1768866752445,0.010798,92669.0,92661.0,0.07490242]
[1768866752647,0.010798,92669.0,92655.0,0.07662971]
[1768866753250,0.18179909,92670.0,92655.0,0.06583071]
[1768866753450,0.010798,92664.0,92655.0,0.06583071]
[1768866754853,0.010798,92667.0,92655.0,0.06583071]
[1768866755047,0.00910798,92669.0,92650.0,0.06583071]
[1768866755251,0.00910798,92669.0,92640.0,0.09716]
[1768866755252,0.00910798,92658.0,92640.0,0.107961]
[1768866755454,0.0108,92653.0,92641.0,0.00907171]
[1768866756149,0.00910798,92659.0,92640.0,0.09716]
[1768866756552,0.010799,92654.0,92642.0,0.00907171]
[1768866756948,0.0108,92652.0,92642.0,0.00907171]
[1768866757149,0.0108,92652.0,92639.0,0.00907171]
[1768866757544,0.27895909,92660.0,92638.0,0.06583071]
[1768866757545,0.0108,92647.0,92638.0,0.06583071]
[1768866757855,0.18179909,92650.0,92638.0,0.06583071]
[1768866758154,0.010799,92657.0,92648.0,0.00907171]
[1768866758340,0.18179909,92660.0,92648.0,0.00907171]
[1768866758543,0.010799,92653.0,92648.0,0.00907171]
[1768866758743,0.010799,92653.0,92644.0,0.00907171]
[1768866761358,0.00910798,92659.0,92639.0,0.00907171]
[1768866761660,0.19259809,92660.0,92642.0,0.00963083]
[1768866761867,0.0108,92651.0,92642.0,0.00963083]
[1768866763059,0.0108,92651.0,92641.0,0.070698]
[1768866763853,0.18179909,92652.0,92641.0,0.070698]
[1768866764157,0.18179909,92652.0,92636.0,0.00963083]
[1768866764354,0.0108,92647.0,92636.0,0.00963083]
[1768866764951,0.0108,92648.0,92636.0,0.00963083]
[1768866765258,0.0108,92651.0,92638.0,0.00963083]
[1768866765458,0.0108,92651.0,92640.0,0.00963083]
[1768866765653,0.0108,92649.0,92640.0,0.00963083]
[1768866766866,0.0108,92649.0,92639.0,0.070698]
[1768866767160,0.0108,92647.0,92635.0,0.01434501]
[1768866767364,0.0108,92647.0,92635.0,0.010802]
[1768866767552,0.0108,92649.0,92635.0,0.02043283]
[1768866768461,0.0108,92649.0,92636.0,0.00963083]
[1768866770855,0.18179909,92650.0,92636.0,0.00963083]
[1768866770856,0.0108,92647.0,92636.0,0.00963083]
[1768866771356,0.0108,92649.0,92637.0,0.00963083]
[1768866774370,0.0108,92647.0,92637.0,0.00963083]
[1768866774860,0.0108,92646.0,92637.0,0.00963083]
[1768866775060,0.0108,92646.0,92635.0,0.0147395]
[1768866775368,0.0108,92646.0,92634.0,0.00921033]
[1768866775860,0.0108,92646.0,92635.0,0.00921033]
[1768866776061,0.0108,92646.0,92637.0,0.001]
[1768866776260,0.010801,92644.0,92637.0,0.01021033]
[1768866776756,0.010801,92644.0,92634.0,0.06622988]
[1768866777066,0.010801,92643.0,92634.0,0.06722988]
[1768866777269,0.0108,92645.0,92634.0,0.06722988]
[1768866777459,0.0108,92645.0,92635.0,0.00921033]
[1768866777765,0.0108,92645.0,92636.0,0.00921033]
[1768866778365,0.0108,92645.0,92637.0,0.001]
[1768866779067,0.0108,92645.0,92636.0,0.00921033]
[1768866779267,0.0108,92645.0,92636.0,0.01021033]
[1768866779765,0.18179909,92650.0,92633.0,0.11175733]
[1768866779766,0.010801,92643.0,92633.0,0.11175733]
[1768866779968,0.010801,92643.0,92637.0,0.001]
[1768866780168,0.0108,92646.0,92637.0,0.001]
[1768866780568,0.010801,92644.0,92637.0,0.001]
[1768866781867,0.0972,92656.0,92638.0,0.06622988]
[1768866783568,0.0108,92649.0,92638.0,0.06622988]
[1768866784666,0.0108,92649.0,92639.0,0.00921033]
[1768866784868,0.0108,92648.0,92639.0,0.00921033]
[1768866785759,0.0108,92648.0,92638.0,0.06622988]
[1768866786676,0.0108,92646.0,92638.0,0.06622988]
[1768866787276,0.00939107,92653.0,92633.0,0.11175733]
[1768866787479,0.00939107,92652.0,92633.0,0.11175733]
[1768866787867,0.00939107,92648.0,92633.0,0.01455733]
[1768866788183,0.00939107,92648.0,92630.0,0.0972]
[1768866788375,0.010801,92643.0,92630.0,0.1117632]
[1768866788578,0.010801,92643.0,92630.0,0.12097353]
[1768866789763,0.00939107,92647.0,92630.0,0.0972]
[1768866789969,0.00939107,92647.0,92629.0,0.00247389]
[1768866789970,0.010802,92632.0,92629.0,8.9e-07]
[1768866790163,0.010802,92632.0,92624.0,0.01701479]
[1768866790365,0.010802,92632.0,92624.0,0.00237519]
[1768866790578,0.010802,92635.0,92624.0,0.00237519]
[1768866791077,0.010802,92635.0,92624.0,0.01674006]
[1768866791393,9.881e-05,92634.0,92630.0,0.001]
[1768866791779,0.0972,92644.0,92630.0,0.01021033]
[1768866791963,0.0972,92644.0,92631.0,0.00921033]
[1768866791964,0.010801,92639.0,92631.0,0.00921033]
[1768866792163,0.0972,92644.0,92631.0,0.00921033]
[1768866792680,0.0972,92644.0,92630.0,0.06622988]
[1768866793870,0.07817366,92640.0,92624.0,0.01674006]
[1768866794177,0.010802,92635.0,92624.0,0.01674006]
[1768866794772,0.010802,92633.0,92624.0,0.01674006]
[1768866795582,0.010802,92636.0,92625.0,0.00921033]
[1768866796074,0.0972,92644.0,92628.0,0.00921033]
[1768866796280,0.0972,92652.0,92637.0,0.00921033]
[1768866796471,0.03431057,92651.0,92638.0,0.00921033]
[1768866796668,0.0108,92651.0,92638.0,0.00921033]
[1768866796867,0.0972,92653.0,92638.0,0.00921033]
[1768866797073,0.02351044,92652.0,92638.0,0.00921033]
[1768866797283,0.107999,92654.0,92638.0,0.00921033]
[1768866797483,0.02343941,92653.0,92638.0,0.00921033]
[1768866797673,0.03423941,92652.0,92638.0,0.00921033]
[1768866797876,0.0108,92650.0,92632.0,0.07544021]
[1768866798070,0.0108,92646.0,92630.0,0.00921033]
[1768866799285,0.0108,92646.0,92632.0,0.00921033]
[1768866799475,0.0108,92646.0,92633.0,0.00921033]
[1768866799670,0.00939107,92649.0,92627.0,0.00921033]
[1768866799875,0.07817366,92649.0,92629.0,0.00921033]
[1768866800071,0.010801,92640.0,92624.0,0.02754306]
[1768866800277,0.010801,92640.0,92624.0,0.01674006]
[1768866800785,0.010801,92640.0,92624.0,0.02595039]
[1768866801482,0.010801,92640.0,92625.0,0.00921033]
[1768866801687,0.010801,92640.0,92624.0,0.01674006]
[1768866801688,0.0108,92646.0,92628.0,0.00921033]
[1768866801888,0.010801,92643.0,92624.0,0.02595039]
[1768866802186,0.010801,92643.0,92625.0,0.00921033]
[1768866802581,0.010801,92643.0,92625.0,0.02001333]
[1768866802886,0.010801,92643.0,92626.0,0.00921033]
[1768866803081,0.010801,92643.0,92630.0,0.0092636]
[1768866803280,0.0108,92646.0,92628.0,0.0092636]
[1768866803480,0.010801,92642.0,92628.0,0.0092636]
[1768866806695,0.00968459,92647.0,92628.0,0.0092636]
[1768866806696,0.010801,92640.0,92628.0,0.0092636]
[1768866811090,0.010801,92643.0,92628.0,0.0092636]
[1768866812291,0.010801,92643.0,92627.0,0.010802]
[1768866812292,5.7e-07,92649.0,92639.0,0.0092636]
[1768866812487,0.010799,92656.0,92639.0,0.0092636]
[1768866812686,0.00968459,92653.0,92638.0,0.06196531]
[1768866812893,0.06802906,92654.0,92638.0,0.07276631]
[1768866813190,0.08851265,92657.0,92638.0,0.08202991]
[1768866813692,0.00968459,92656.0,92638.0,0.06196531]
[1768866813900,0.07771365,92655.0,92638.0,0.06196531]
[1768866814281,0.07771365,92655.0,92635.0,0.0972]
[1768866814478,0.0108,92651.0,92635.0,0.1064636]
[1768866814682,0.0108,92651.0,92636.0,0.0092636]
[1768866816288,0.0108,92651.0,92635.0,0.0972]
[1768866816496,0.0108,92651.0,92636.0,0.0092636]
[1768866816696,0.0108,92651.0,92635.0,0.0972]
[1768866817094,0.010801,92641.0,92624.0,0.01674006]
[1768866817396,0.010801,92637.0,92624.0,0.01674006]
[1768866817991,0.07771365,92639.0,92624.0,0.00237519]
[1768866818392,0.010801,92637.0,92624.0,0.01652159]
[1768866818698,0.00968459,92642.0,92624.0,0.01652159]
[1768866819091,0.07771365,92639.0,92624.0,0.01652159]
[1768866820098,0.06802906,92645.0,92626.0,0.0092636]
[1768866820299,0.010801,92640.0,92627.0,0.0092636]
[1768866820700,0.010801,92638.0,92624.0,0.01652159]
[1768866822091,0.010801,92636.0,92624.0,0.00237519]
[1768866822293,0.010801,92636.0,92629.0,0.00237508]
[1768866823001,0.07771365,92641.0,92629.0,0.00237508]
[1768866823602,0.07037,92640.0,92629.0,0.00237508]
[1768866824202,0.010802,92634.0,92629.0,0.00237508]
[1768866824905,0.010802,92635.0,92629.0,8e-08]
[1768866825390,0.0096069,92636.0,92629.0,8e-08]
[1768866825596,0.07037,92636.0,92629.0,8e-08]
[1768866825801,0.010802,92634.0,92629.0,8e-08]
[1768866826594,0.0715651,92634.0,92629.0,8e-08]
[1768866826794,0.010802,92630.0,92629.0,8e-08]
[1768866828914,0.0715651,92630.0,92629.0,8e-08]
[1768866829504,0.010802,92630.0,92629.0,8e-08]
[1768866829700,0.010802,92629.0,92624.0,0.00237519]
[1768866830304,0.07037,92629.0,92610.0,0.00905399]
[1768866830506,0.07037,92623.0,92606.0,0.0972]
[1768866830698,0.07037,92621.0,92606.0,0.108005]
[1768866830894,0.010803,92620.0,92606.0,0.108005]
[1768866831108,0.0096069,92624.0,92606.0,0.0972]
[1768866831411,0.0607631,92626.0,92610.0,0.010804]
[1768866831605,0.010802,92631.0,92613.0,0.00905399]
[1768866831911,0.010802,92629.0,92614.0,0.00905399]
[1768866832999,0.07254462,92631.0,92610.0,0.07139417]
[1768866833204,0.010802,92628.0,92612.0,0.010804]
[1768866833609,0.010802,92628.0,92614.0,0.010804]
[1768866836215,0.010802,92628.0,92610.0,0.06223715]
[1768866836216,0.010801,92638.0,92623.0,0.00915702]
[1768866836512,0.010801,92642.0,92625.0,0.010803]
[1768866836907,0.010801,92640.0,92623.0,0.00915702]
[1768866837108,0.010801,92640.0,92623.0,0.01996002]
[1768866837705,0.06263599,92642.0,92625.0,0.01996002]
[1768866838016,0.0108,92645.0,92628.0,0.00915702]
[1768866838407,0.07254462,92648.0,92628.0,0.00915702]
[1768866838608,0.010801,92641.0,92628.0,0.00915702]
[1768866838808,0.010801,92639.0,92622.0,0.00915702]
[1768866840006,0.010801,92639.0,92623.0,0.01996002]
[1768866840312,0.00990863,92644.0,92621.0,0.06466095]